[Event "4NCL Div 2 2024-25"]
[Site "England"]
[Date "2025.04.06"]
[Round "8.1"]
[White "Gallagher, Daniel GH"]
[Black "Claridge-Hansen, William"]
[Result "1-0"]
[Annotator "ChessBase"]
[ECO "B18"]
[WhiteElo "2203"]
[BlackElo "2373"]
[PlyCount "81"]
[EventDate "2024.11.23"]
[EventType "team-tourn"]
[EventCountry "ENG"]
[SourceTitle "playchess.com"]
[Source "ChessBase"]
[SourceQuality "1"]
[TimeControl "40/6000+30:3000+30"]

1. e4 {[%emt 0:10:01]} c6 {[%emt 0:10:12]} 2. d4 {[%emt 0:00:12]} d5 {[%emt 0:00:29]} 3. Nc3 {[%emt 0:00:07]} dxe4 {[%emt 0:01:24]} 4. Nxe4 {[%emt 0:00:05]} Bf5 {[%emt 0:04:05]} 5. Ng3 {[%emt 0:00:05]} Bg6 {[%emt 0:00:06]} 6. h4 {[%emt 0:00:05]} h6 {[%emt 0:00:19]} 7. Be3 {[%emt 0:05:14]} e6 {[%emt 0:01:53]} 8. Bd3 {[%emt 0:00:11]} Bxd3 {[%emt 0:00:46]} 9. Qxd3 {[%emt 0:00:02]} Qa5+ {[%emt 0:09:23]} 10. Bd2 {[%emt 0:00:29]} Qa6 {[%emt 0:01:06]} 11. c4 {[%emt 0:00:06]} Nf6 {[%emt 0:00:53]} 12. b4 {[%emt 0:00:16]} b5 {[%emt 0:07:08]} 13. c5 {[%emt 0:04:34]} Be7 {[%emt 0:03:56]} 14. Nf3 {[%emt 0:10:12]} O-O {[%emt 0:16:59]} 15. O-O {[%emt 0:04:21]} Rd8 {[%emt 0:06:27]} 16. Rfe1 {[%emt 0:03:57]} Qb7 {[%emt 0:05:13]} 17. Qe2 {[%emt 0:28:08]} Na6 {[%emt 0:10:01]} 18. Rab1 {[%emt 0:03:25]} Nc7 {[%emt 0:01:09]} 19. Rb3 {[%emt 0:00:15]} Ncd5 {[%emt 0:01:31]} 20. Ne5 {[%emt 0:01:06]} Bf8 {[%emt 0:05:48]} 21. Rf3 {[%emt 0:05:21]} Rac8 {[%emt 0:11:28]} 22. Ne4 {[%emt 0:02:24]} Rc7 {[%emt 0:00:45]} 23. Nxf6+ {[%emt 0:08:22]} Nxf6 {[%emt 0:01:11]} 24. Qe3 {[%emt 0:09:25]} Nd5 {[%emt 0:02:52]} 25. Qe4 {[%emt 0:00:11]} f5 {[%emt 0:03:11]} 26. Qe2 {[%emt 0:01:02]} Nf6 {[%emt 0:05:15]} 27. Rd3 {[%emt 0:00:58]} Qc8 {[%emt 0:00:00]} 28. Ng6 {[%emt 0:03:54]} Nd5 {[%emt 0:00:00]} 29. a3 {[%emt 0:01:16]} Be7 {[%emt 0:00:43]} 30. Bf4 {[%emt 0:03:04]} Nxf4 {[%emt 0:00:15]} 31. Nxf4 {[%emt 0:00:02]} Bxh4 {[%emt 0:00:39]} 32. Nxe6 {[%emt 0:02:06]} Re7 {[%emt 0:00:05]} 33. Re3 {[%emt 0:00:16]} Rde8 {[%emt 0:00:19]} 34. Qa2 {[%emt 0:00:18]} Kh8 {[%emt 0:00:56]} 35. d5 {[%emt 0:00:15]} cxd5 {[%emt 0:00:17]} 36. Qxd5 {[%emt 0:00:08]} f4 {[%emt 0:01:04]} 37. Nxf4 {[%emt 0:01:38]} Rxe3 {[%emt 0:00:07]} 38. Rxe3 {[%emt 0:00:07]} Bg5 {[%emt 0:00:55]} 39. Rxe8+ {[%emt 0:01:18]} Qxe8 {[%emt 0:00:01]} 40. Qe6 {[%emt 0:01:42]} Qd8 {[%emt 0:01:00]} 41. Nd5 {[%emt 0:53:01]} 1-0

[Event "4NCL Div 2 2024-25"]
[Site "England"]
[Date "2025.04.06"]
[Round "8.2"]
[White "Hobson, Kenneth"]
[Black "Hill, Alistair"]
[Result "1-0"]
[Annotator "ChessBase"]
[ECO "B10"]
[WhiteElo "2152"]
[BlackElo "2076"]
[PlyCount "97"]
[EventDate "2024.11.23"]
[EventType "team-tourn"]
[EventCountry "ENG"]
[SourceTitle "playchess.com"]
[Source "ChessBase"]
[SourceQuality "1"]
[TimeControl "40/6000+30:3000+30"]

1. e4 {[%emt 0:10:04]} c6 {[%emt 0:10:14]} 2. Nf3 {[%emt 0:02:59]} d5 {[%emt 0:00:09]} 3. exd5 {[%emt 0:00:05]} cxd5 {[%emt 0:00:05]} 4. Ne5 {[%emt 0:00:07]} Nc6 {[%emt 0:00:24]} 5. Bb5 {[%emt 0:00:32]} Bd7 {[%emt 0:00:13]} 6. Bxc6 {[%emt 0:00:07]} Bxc6 {[%emt 0:00:07]} 7. d4 {[%emt 0:00:23]} Rc8 {[%emt 0:00:21]} 8. O-O {[%emt 0:00:55]} e6 {[%emt 0:00:06]} 9. Re1 {[%emt 0:01:23]} Nf6 {[%emt 0:00:07]} 10. c3 {[%emt 0:05:10]} Be7 {[%emt 0:00:44]} 11. Bg5 {[%emt 0:03:23]} O-O {[%emt 0:01:24]} 12. Nd2 {[%emt 0:03:31]} Nd7 {[%emt 0:32:37]} 13. Bxe7 {[%emt 0:00:43]} Qxe7 {[%emt 0:00:05]} 14. Nxd7 {[%emt 0:01:50]} Bxd7 {[%emt 0:00:16]} 15. a4 {[%emt 0:04:59]} a5 {[%emt 0:05:31]} 16. Nf3 {[%emt 0:03:22]} Rb8 {[%emt 0:06:11]} 17. Ne5 {[%emt 0:12:37]} Rfc8 {[%emt 0:01:09]} 18. Qd2 {[%emt 0:14:04]} b6 {[%emt 0:00:48]} 19. f4 {[%emt 0:02:54]} Qd6 {[%emt 0:13:29]} 20. Re3 {[%emt 0:04:24]} Be8 {[%emt 0:01:05]} 21. Qf2 {[%emt 0:07:41]} f6 {[%emt 0:02:04]} 22. Nd3 {[%emt 0:05:21]} Bg6 {[%emt 0:00:12]} 23. Qe2 {[%emt 0:00:51]} Be4 {[%emt 0:02:31]} 24. Nf2 {[%emt 0:03:15]} f5 {[%emt 0:00:07]} 25. Nd3 {[%emt 0:01:11]} Rc7 {[%emt 0:17:14]} 26. Ne5 {[%emt 0:01:01]} g6 {[%emt 0:00:21]} 27. h4 {[%emt 0:01:51]} Rg7 {[%emt 0:00:38]} 28. Kf2 {[%emt 0:06:08]} h6 {[%emt 0:05:49]} 29. Rg3 {[%emt 0:01:08]} Kh7 {[%emt 0:00:04]} 30. Qb5 {[%emt 0:01:23]} Rc8 {[%emt 0:02:24]} 31. Rh1 {[%emt 0:01:23]} Qc7 {[%emt 0:01:40]} 32. Ke3 {[%emt 0:01:09]} Qd8 {[%emt 0:00:21]} 33. Kd2 {[%emt 0:02:54]} Qc7 {[%emt 0:00:04]} 34. Kc1 {[%emt 0:01:46]} Qd8 {[%emt 0:00:05]} 35. Rh2 {[%emt 0:01:31]} Qc7 {[%emt 0:00:33]} 36. Rhh3 {[%emt 0:00:07]} Qd8 {[%emt 0:00:24]} 37. Kd2 {[%emt 0:00:12]} Qc7 {[%emt 0:00:17]} 38. Rh1 {[%emt 0:00:45]} Qd8 {[%emt 0:00:04]} 39. Rhh3 {[%emt 0:02:25]} Qc7 {[%emt 0:00:06]} 40. Qe2 {[%emt 0:00:55]} Rcg8 {[%emt 0:05:44]} 41. Rg5 {[%emt 0:53:57]} Rb8 {[%emt 0:26:06]} 42. h5 {[%emt 0:00:00]} hxg5 {[%emt 0:01:03]} 43. hxg6+ {[%emt 0:00:00]} Kg8 {[%emt 0:00:06]} 44. Qh5 {[%emt 0:00:00]} Kf8 {[%emt 0:00:04]} 45. Qh8+ {[%emt 0:00:00]} Ke7 {[%emt 0:01:24]} 46. Qxg7+ {[%emt 0:00:00]} Kd6 {[%emt 0:00:05]} 47. Qxc7+ {[%emt 0:00:00]} Kxc7 {[%emt 0:00:04]} 48. Rh7+ {[%emt 0:00:00]} Kd6 {[%emt 0:00:19]} 49. Rd7# {[%emt 0:00:00]} 1-0

[Event "4NCL Div 2 2024-25"]
[Site "England"]
[Date "2025.04.06"]
[Round "8.3"]
[White "Goh, Jinghan Cameron"]
[Black "Khoury, Theo"]
[Result "1/2-1/2"]
[Annotator "ChessBase"]
[ECO "E16"]
[WhiteElo "2017"]
[BlackElo "2194"]
[PlyCount "101"]
[EventDate "2024.11.23"]
[EventType "team-tourn"]
[EventCountry "ENG"]
[SourceTitle "playchess.com"]
[Source "ChessBase"]
[SourceQuality "1"]
[TimeControl "40/6000+30:3000+30"]

1. d4 {[%emt 0:10:08]} d5 {[%emt 0:10:09]} 2. c4 {[%emt 0:00:06]} e6 {[%emt 0:00:01]} 3. Nf3 {[%emt 0:00:05]} Nf6 {[%emt 0:00:03]} 4. g3 {[%emt 0:00:06]} Bb4+ {[%emt 0:00:04]} 5. Nbd2 {[%emt 0:00:20]} O-O {[%emt 0:01:48]} 6. Bg2 {[%emt 0:00:07]} b6 {[%emt 0:00:07]} 7. O-O {[%emt 0:00:15]} Bb7 {[%emt 0:00:04]} 8. a3 {[%emt 0:00:55]} Be7 {[%emt 0:00:12]} 9. cxd5 {[%emt 0:00:36]} exd5 {[%emt 0:01:34]} 10. b4 {[%emt 0:00:21]} a5 {[%emt 0:03:29]} 11. b5 {[%emt 0:00:15]} c6 {[%emt 0:00:03]} 12. Qa4 {[%emt 0:00:10]} cxb5 {[%emt 0:07:13]} 13. Qxb5 {[%emt 0:00:49]} Ba6 {[%emt 0:00:19]} 14. Qb2 {[%emt 0:00:05]} b5 {[%emt 0:07:27]} 15. Ne5 {[%emt 0:03:18]} Ra7 {[%emt 0:08:08]} 16. Nb3 {[%emt 0:07:26]} Qb6 {[%emt 0:06:02]} 17. Bd2 {[%emt 0:08:17]} b4 {[%emt 0:04:32]} 18. axb4 {[%emt 0:13:46]} axb4 {[%emt 0:01:57]} 19. Nc5 {[%emt 0:07:53]} Bxe2 {[%emt 0:13:16]} 20. Qxb4 {[%emt 0:06:46]} Qxb4 {[%emt 0:02:24]} 21. Bxb4 {[%emt 0:00:09]} Bxf1 {[%emt 0:03:29]} 22. Rxa7 {[%emt 0:00:42]} Bxg2 {[%emt 0:00:06]} 23. Rxe7 {[%emt 0:06:20]} Bh3 {[%emt 0:00:18]} 24. Ra7 {[%emt 0:16:33]} Ng4 {[%emt 0:03:18]} 25. Ra8 {[%emt 0:22:01]} Nxe5 {[%emt 0:01:55]} 26. dxe5 {[%emt 0:00:13]} Nc6 {[%emt 0:00:15]} 27. Rxf8+ {[%emt 0:00:10]} Kxf8 {[%emt 0:00:06]} 28. Nd3+ {[%emt 0:02:43]} Ke8 {[%emt 0:01:34]} 29. Bd6 {[%emt 0:00:28]} Bf5 {[%emt 0:02:20]} 30. Nc5 {[%emt 0:01:14]} d4 {[%emt 0:00:45]} 31. f3 {[%emt 0:01:40]} d3 {[%emt 0:01:14]} 32. Nb3 {[%emt 0:01:05]} Nd4 {[%emt 0:00:52]} 33. Nd2 {[%emt 0:00:17]} Kd7 {[%emt 0:00:09]} 34. g4 {[%emt 0:00:48]} Be6 {[%emt 0:00:23]} 35. Kf2 {[%emt 0:00:54]} Nc2 {[%emt 0:00:07]} 36. Bf8 {[%emt 0:00:37]} g6 {[%emt 0:00:35]} 37. h3 {[%emt 0:00:40]} Kc6 {[%emt 0:00:06]} 38. Bd6 {[%emt 0:00:22]} Kd5 {[%emt 0:00:09]} 39. Bb8 {[%emt 0:00:11]} Kd4 {[%emt 0:00:21]} 40. f4 {[%emt 0:00:19]} Kc3 {[%emt 0:02:07]} 41. Ne4+ {[%emt 0:50:16]} Kb2 {[%emt 0:51:22]} 42. Bc7 {[%emt 0:00:00]} Na3 {[%emt 0:00:00]} 43. Nd2 {[%emt 0:00:00]} Kc1 {[%emt 0:00:00]} 44. Ke3 {[%emt 0:00:00]} Nc2+ {[%emt 0:00:00]} 45. Kxd3 {[%emt 0:00:00]} Nb4+ {[%emt 0:00:00]} 46. Ke2 {[%emt 0:00:00]} Nd5 {[%emt 0:00:00]} 47. Ba5 {[%emt 0:00:00]} Nxf4+ {[%emt 0:00:00]} 48. Kf3 {[%emt 0:00:00]} Nxh3 {[%emt 0:00:00]} 49. Ne4 {[%emt 0:00:00]} Bd5 {[%emt 0:00:00]} 50. Kg3 {[%emt 0:00:00]} Bxe4 {[%emt 0:00:00]} 51. Kxh3 {[%emt 0:00:00]} 1/2-1/2

[Event "4NCL Div 2 2024-25"]
[Site "England"]
[Date "2025.04.06"]
[Round "8.4"]
[White "Udovenko, Daniel"]
[Black "Mihalik, Agoston"]
[Result "1-0"]
[Annotator "ChessBase"]
[ECO "D52"]
[WhiteElo "1941"]
[BlackElo "2133"]
[PlyCount "129"]
[EventDate "2024.11.23"]
[EventType "team-tourn"]
[EventCountry "ENG"]
[SourceTitle "playchess.com"]
[Source "ChessBase"]
[SourceQuality "1"]
[TimeControl "40/6000+30:3000+30"]

1. d4 {[%emt 0:10:02]} Nf6 {[%emt 0:10:05]} 2. c4 {[%emt 0:00:02]} e6 {[%emt 0:00:06]} 3. Nf3 {[%emt 0:00:09]} d5 {[%emt 0:00:06]} 4. Nc3 {[%emt 0:00:04]} Nbd7 {[%emt 0:00:09]} 5. Bg5 {[%emt 0:00:04]} c6 {[%emt 0:00:06]} 6. e3 {[%emt 0:00:03]} Qa5 {[%emt 0:00:10]} 7. Nd2 {[%emt 0:00:02]} Bb4 {[%emt 0:00:17]} 8. Rc1 {[%emt 0:00:04]} O-O {[%emt 0:00:50]} 9. Be2 {[%emt 0:00:07]} Bxc3 {[%emt 0:04:26]} 10. Rxc3 {[%emt 0:00:15]} Qxa2 {[%emt 0:03:22]} 11. Qc1 {[%emt 0:00:09]} Qa5 {[%emt 0:03:15]} 12. Ra3 {[%emt 0:00:24]} Qc7 {[%emt 0:06:44]} 13. Bf4 {[%emt 0:10:32]} Qd8 {[%emt 0:16:28]} 14. c5 {[%emt 0:01:38]} Re8 {[%emt 0:06:45]} 15. O-O {[%emt 0:05:17]} e5 {[%emt 0:02:24]} 16. dxe5 {[%emt 0:00:24]} Nxe5 {[%emt 0:00:09]} 17. b4 {[%emt 0:26:54]} a6 {[%emt 0:13:18]} 18. Nb3 {[%emt 0:04:25]} Ng6 {[%emt 0:03:49]} 19. Nd4 {[%emt 0:04:03]} Nxf4 {[%emt 0:01:46]} 20. exf4 {[%emt 0:00:03]} Re4 {[%emt 0:07:25]} 21. Rd1 {[%emt 0:03:33]} Bd7 {[%emt 0:03:50]} 22. Bf3 {[%emt 0:01:00]} Re7 {[%emt 0:00:59]} 23. f5 {[%emt 0:00:30]} Qc7 {[%emt 0:01:10]} 24. g4 {[%emt 0:08:56]} Ne4 {[%emt 0:02:42]} 25. Bg2 {[%emt 0:01:15]} Rae8 {[%emt 0:02:55]} 26. g5 {[%emt 0:02:39]} Qd8 {[%emt 0:14:31]} 27. f6 {[%emt 0:16:33]} Re5 {[%emt 0:00:55]} 28. f4 {[%emt 0:02:55]} Rf5 {[%emt 0:01:15]} 29. Nxf5 {[%emt 0:00:52]} Bxf5 {[%emt 0:00:02]} 30. fxg7 {[%emt 0:01:30]} Qd7 {[%emt 0:01:50]} 31. Qa1 {[%emt 0:03:50]} Qe6 {[%emt 0:00:17]} 32. Re3 {[%emt 0:08:16]} Qg6 {[%emt 0:00:42]} 33. Rf1 {[%emt 0:00:00]} Qxg7 {[%emt 0:01:48]} 34. Qxg7+ {[%emt 0:00:00]} Kxg7 {[%emt 0:00:01]} 35. Rd1 {[%emt 0:00:00]} Kg6 {[%emt 0:01:41]} 36. Bf1 {[%emt 0:00:00]} Rb8 {[%emt 0:00:43]} 37. Rd4 {[%emt 0:00:00]} Kh5 {[%emt 0:00:54]} 38. Be2+ {[%emt 0:00:00]} Kg6 {[%emt 0:00:06]} 39. h4 {[%emt 0:00:00]} Kg7 {[%emt 0:00:14]} 40. h5 {[%emt 0:00:48]} Rg8 {[%emt 0:01:32]} 41. Bd3 {[%emt 0:52:36]} Rb8 {[%emt 0:30:09]} 42. Bf1 {[%emt 0:00:00]} h6 {[%emt 0:10:46]} 43. Bd3 {[%emt 0:00:00]} hxg5 {[%emt 0:04:09]} 44. fxg5 {[%emt 0:00:00]} Rh8 {[%emt 0:01:01]} 45. Bxe4 {[%emt 0:00:00]} Bxe4 {[%emt 0:00:06]} 46. Rh3 {[%emt 0:00:00]} b6 {[%emt 0:01:17]} 47. cxb6 {[%emt 0:00:00]} Rb8 {[%emt 0:00:10]} 48. Ra3 {[%emt 0:00:00]} Rxb6 {[%emt 0:00:11]} 49. Kf2 {[%emt 0:00:00]} f6 {[%emt 0:01:09]} 50. Rg3 {[%emt 0:00:00]} fxg5 {[%emt 0:01:09]} 51. Rxg5+ {[%emt 0:00:00]} Kf6 {[%emt 0:02:32]} 52. Rg8 {[%emt 0:00:00]} Rb7 {[%emt 0:00:22]} 53. Ra8 {[%emt 0:02:20]} Ke5 {[%emt 0:00:54]} 54. Ke3 {[%emt 0:00:58]} Rh7 {[%emt 0:01:08]} 55. Rxa6 {[%emt 0:00:44]} Rh8 {[%emt 0:02:34]} 56. Rxc6 {[%emt 0:00:17]} Rf8 {[%emt 0:00:25]} 57. Rxe4+ {[%emt 0:03:01]} dxe4 {[%emt 0:00:04]} 58. Rc5+ {[%emt 0:00:32]} Kd6 {[%emt 0:00:31]} 59. h6 {[%emt 0:00:44]} Rf3+ {[%emt 0:01:01]} 60. Kxe4 {[%emt 0:00:07]} Rh3 {[%emt 0:00:03]} 61. Ra5 {[%emt 0:00:36]} Rh4+ {[%emt 0:00:07]} 62. Kf5 {[%emt 0:00:21]} Rxb4 {[%emt 0:00:07]} 63. h7 {[%emt 0:01:08]} Rh4 {[%emt 0:00:29]} 64. Kg6 {[%emt 0:00:05]} Ke7 {[%emt 0:00:41]} 65. Rh5 {[%emt 0:00:33]} 1-0

[Event "4NCL Div 2 2024-25"]
[Site "England"]
[Date "2025.04.06"]
[Round "8.5"]
[White "Lee, Richard W Y"]
[Black "Zakarian, Dimitrios Levon"]
[Result "0-1"]
[Annotator "NA"]
[ECO "B42"]
[WhiteElo "2102"]
[BlackElo "1968"]
[PlyCount "66"]
[EventDate "2024.11.23"]
[EventType "team-tourn"]
[EventCountry "ENG"]
[SourceTitle "playchess.com"]
[Source "ChessBase"]
[SourceQuality "1"]
[TimeControl "40/6000+30:3000+30"]

1. e4 {[%emt 0:22:25]} c5 {[%emt 0:10:04]} 2. Nf3 {[%emt 0:00:29]} e6 {[%emt 0:00:06]} 3. d4 {[%emt 0:00:07]} cxd4 {[%emt 0:00:04]} 4. Nxd4 {[%emt 0:00:03]} a6 {[%emt 0:00:06]} 5. Bd3 {[%emt 0:00:11]} Nf6 {[%emt 0:00:09]} 6. O-O {[%emt 0:00:54]} Qc7 {[%emt 0:00:05]} 7. Qe2 {[%emt 0:01:18]} d6 {[%emt 0:00:06]} 8. c4 {[%emt 0:01:10]} g6 {[%emt 0:00:54]} 9. Nc3 {[%emt 0:02:05]} Bg7 {[%emt 0:00:12]} 10. Rd1 {[%emt 0:02:41]} O-O {[%emt 0:02:23]} 11. Nf3 {[%emt 0:03:05]} b6 {[%emt 0:08:33]} 12. Bf4 {[%emt 0:03:32]} Nh5 {[%emt 0:04:00]} 13. Bd2 {[%emt 0:02:55]} Bb7 {[%emt 0:02:01]} 14. Rac1 {[%emt 0:01:45]} Nd7 {[%emt 0:02:12]} 15. Be3 {[%emt 0:14:06]} Rfe8 {[%emt 0:05:17]} 16. Nd4 {[%emt 0:15:42]} Ne5 {[%emt 0:07:41]} 17. Na4 {[%emt 0:04:54]} Nxd3 {[%emt 0:02:18]} 18. Qxd3 {[%emt 0:00:21]} Nf6 {[%emt 0:02:20]} 19. f3 {[%emt 0:03:36]} Nd7 {[%emt 0:09:36]} 20. b3 {[%emt 0:14:41]} Rad8 {[%emt 0:08:16]} 21. Qd2 {[%emt 0:01:20]} Qb8 {[%emt 0:09:49]} 22. Nc3 {[%emt 0:03:12]} Nf6 {[%emt 0:04:37]} 23. Nde2 {[%emt 0:02:11]} Bc6 {[%emt 0:00:23]} 24. Nd4 {[%emt 0:00:54]} Ba8 {[%emt 0:01:23]} 25. Qf2 {[%emt 0:04:25]} d5 {[%emt 0:02:28]} 26. exd5 {[%emt 0:03:25]} exd5 {[%emt 0:00:08]} 27. cxd5 {[%emt 0:00:47]} Nxd5 {[%emt 0:00:11]} 28. Nxd5 {[%emt 0:00:08]} Rxd5 {[%emt 0:00:16]} 29. Nc2 {[%emt 0:01:08]} Rh5 {[%emt 0:08:24]} 30. h3 {[%emt 0:01:10]} Be5 {[%emt 0:00:21]} 31. Bxb6 {[%emt 0:00:32]} Bg3 {[%emt 0:00:51]} 32. Qd4 {[%emt 0:00:15]} Rd5 {[%emt 0:01:55]} 33. Qb4 {[%emt 0:00:52]} Rb5 {[%emt 0:00:23]} 0-1